[Event "Chessity Nationale Pupillendag 2018 - Groep F"]
[Site "Meppel, Netherlands"]
[Date "2018.06.23"]
[Round "2.3"]
[White "Kazarjan, Gachatur"]
[Black "Song, Fred"]
[Result "1-0"]
[TimeControl "15 min + 10 sec"]
[WhiteElo "1020"]
[BlackElo "580"]

1. d4 d5 {[%clk 00:15:18]} {[%emt 00:00:01]} 2. c4 {[%clk 00:15:18]} {[%emt
00:00:03]} dxc4 {[%clk 00:15:27]} {[%emt 00:00:02]} 3. e4 {[%clk 00:15:27]} Nf6
{[%clk 00:15:35]} {[%emt 00:00:02]} 4. e5 {[%clk 00:15:36]} {[%emt 00:00:03]}
Nd5 {[%clk 00:15:44]} 5. Bxc4 {[%clk 00:15:44]} {[%emt 00:00:02]} e6 {[%clk
00:15:52]} {[%emt 00:00:02]} 6. Nc3 {[%clk 00:15:45]} {[%emt 00:00:08]} Bb4
{[%clk 00:15:56]} {[%emt 00:00:04]} 7. Bd2 {[%emt 00:00:14]} Bxc3 {[%clk
00:15:56]} {[%emt 00:00:02]} 8. Bxc3 {[%clk 00:15:58]} {[%emt 00:00:03]} Nxc3
{[%clk 00:16:02]} {[%emt 00:00:04]} 9. bxc3 {[%clk 00:16:04]} {[%emt 00:00:03]}
Nc6 {[%clk 00:16:11]} {[%emt 00:00:02]} 10. Nf3 {[%clk 00:16:11]} {[%emt
00:00:03]} Na5 {[%clk 00:16:20]} {[%emt 00:00:01]} 11. Qa4+ {[%clk 00:16:19]}
{[%emt 00:00:02]} Bd7 {[%clk 00:16:24]} {[%emt 00:00:06]} 12. Qxa5 {[%emt
00:00:07]} O-O {[%clk 00:16:28]} {[%emt 00:00:05]} 13. O-O {[%clk 00:16:27]}
{[%emt 00:00:06]} b6 {[%clk 00:16:33]} {[%emt 00:00:05]} 14. Qa3 {[%clk
00:16:34]} {[%emt 00:00:02]} Bc6 {[%clk 00:16:36]} {[%emt 00:00:08]} 15. Be2
{[%clk 00:16:41]} {[%emt 00:00:03]} a5 {[%clk 00:16:41]} {[%emt 00:00:06]} 16.
c4 {[%clk 00:16:47]} {[%emt 00:00:04]} b5 {[%clk 00:16:41]} {[%emt 00:00:09]}
17. c5 {[%clk 00:16:53]} {[%emt 00:00:04]} Qd5 {[%clk 00:16:44]} {[%emt
00:00:08]} 18. Rfe1 {[%clk 00:16:51]} {[%emt 00:00:10]} b4 {[%clk 00:16:49]}
{[%emt 00:00:06]} 19. Qb3 {[%clk 00:16:57]} {[%emt 00:00:04]} Qxb3 {[%clk
00:16:56]} {[%emt 00:00:04]} 20. axb3 {[%clk 00:17:05]} {[%emt 00:00:02]} h6
{[%clk 00:16:58]} {[%emt 00:00:07]} 21. Nd2 {[%clk 00:17:03]} {[%emt 00:00:12]}
Rad8 {[%emt 00:00:13]} 22. Nf3 {[%clk 00:17:02]} {[%emt 00:00:05]} Bxf3 {[%clk
00:17:09]} {[%emt 00:00:03]} 23. Bxf3 {[%clk 00:17:10]} {[%emt 00:00:01]} Rxd4
{[%clk 00:17:16]} {[%emt 00:00:03]} 24. Rxa5 {[%clk 00:17:18]} {[%emt
00:00:02]} Rd3 {[%clk 00:17:16]} {[%emt 00:00:10]} 25. Rb1 {[%clk 00:17:20]}
{[%emt 00:00:06]} Rb8 {[%clk 00:17:12]} {[%emt 00:00:14]} 26. Rba1 {[%clk
00:17:24]} {[%emt 00:00:06]} Rdd8 {[%clk 00:17:16]} {[%emt 00:00:05]} 27. g3
{[%clk 00:17:20]} {[%emt 00:00:16]} g6 {[%clk 00:17:02]} {[%emt 00:00:25]} 28.
Ra8 {[%clk 00:17:17]} {[%emt 00:00:12]} Rxa8 {[%clk 00:17:09]} {[%emt
00:00:05]} 29. Rxa8 {[%clk 00:17:25]} {[%emt 00:00:02]} Rxa8 {[%emt 00:00:03]}
30. Bxa8 {[%emt 00:00:02]} Kg7 {[%clk 00:17:12]} {[%emt 00:00:01]} 31. f3
{[%clk 00:17:30]} {[%emt 00:00:05]} f6 {[%clk 00:17:21]} {[%emt 00:00:01]} 32.
f4 {[%clk 00:17:37]} {[%emt 00:00:03]} fxe5 {[%clk 00:17:30]} {[%emt 00:00:01]}
33. fxe5 {[%clk 00:17:46]} {[%emt 00:00:02]} g5 {[%clk 00:17:38]} 34. Kf2
{[%clk 00:17:54]} Kg6 {[%clk 00:17:47]} {[%emt 00:00:02]} 35. Be4+ {[%clk
00:18:01]} {[%emt 00:00:03]} Kh5 {[%clk 00:17:53]} {[%emt 00:00:04]} 36. h3
{[%clk 00:18:09]} {[%emt 00:00:02]} g4 {[%clk 00:18:02]} {[%emt 00:00:01]} 37.
h4 {[%clk 00:18:16]} {[%emt 00:00:03]} c6 {[%clk 00:18:06]} {[%emt 00:00:07]}
38. Bxc6 {[%clk 00:18:23]} {[%emt 00:00:03]} Kg6 {[%clk 00:18:12]} {[%emt
00:00:03]} 39. Bd7 {[%clk 00:18:31]} {[%emt 00:00:02]} Kf5 {[%clk 00:18:19]}
{[%emt 00:00:03]} 40. c6 {[%clk 00:18:38]} {[%emt 00:00:03]} Kxe5 {[%clk
00:18:27]} {[%emt 00:00:02]} 41. c7 {[%clk 00:18:46]} {[%emt 00:00:02]} Kd6
{[%clk 00:18:34]} {[%emt 00:00:03]} 42. c8=Q {[%clk 00:18:52]} {[%emt
00:00:03]} e5 {[%clk 00:18:42]} {[%emt 00:00:02]} 43. Qc6+ {[%clk 00:18:59]}
{[%emt 00:00:04]} Ke7 {[%clk 00:18:50]} {[%emt 00:00:02]} 44. Qe6+ {[%clk
00:19:05]} {[%emt 00:00:03]} Kf8 {[%clk 00:18:59]} {[%emt 00:00:02]} 45. Bb5
{[%emt 00:00:07]} Kg7 {[%clk 00:19:06]} 46. Bc4 {[%clk 00:19:18]} {[%emt
00:00:02]} Kh7 {[%clk 00:19:13]} {[%emt 00:00:02]} 47. Qg8 {[%clk 00:15:10]}
{[%emt 00:00:03]} 1-0

[Event "Chessity Nationale Pupillendag 2018 - Groep F"]
[Site "Meppel, Netherlands"]
[Date "2018.06.23"]
[Round "2.4"]
[White "Bok, Tjacko"]
[Black "Van Batenburg, Mees"]
[Result "0-1"]
[TimeControl "15 min + 10 sec"]
[WhiteElo "595"]
[BlackElo "962"]

1. e4 {[%clk 00:15:20]} e5 {[%clk 00:15:19]} {[%emt 00:00:02]} 2. Nf3 {[%clk
00:15:28]} Nc6 {[%clk 00:15:28]} {[%emt 00:00:03]} 3. Bc4 {[%clk 00:15:36]}
{[%emt 00:00:02]} Bc5 {[%emt 00:00:01]} 4. O-O {[%clk 00:15:44]} h6 {[%clk
00:15:39]} {[%emt 00:00:07]} 5. c3 {[%clk 00:15:50]} {[%emt 00:00:05]} Nf6
{[%clk 00:15:44]} {[%emt 00:00:05]} 6. d4 {[%clk 00:15:52]} {[%emt 00:00:07]}
exd4 {[%clk 00:15:51]} {[%emt 00:00:03]} 7. cxd4 {[%clk 00:16:00]} {[%emt
00:00:02]} Bb4 {[%clk 00:15:48]} {[%emt 00:00:13]} 8. Qe2 {[%clk 00:16:02]}
{[%emt 00:00:17]} d5 {[%clk 00:15:55]} {[%emt 00:00:14]} 9. exd5+ {[%clk
00:16:09]} {[%emt 00:00:03]} Ne7 {[%clk 00:15:53]} {[%emt 00:00:11]} 10. a3
{[%clk 00:16:09]} {[%emt 00:00:11]} Bd6 {[%clk 00:15:40]} {[%emt 00:00:24]} 11.
Nc3 {[%clk 00:16:07]} {[%emt 00:00:11]} O-O {[%clk 00:15:33]} {[%emt 00:00:17]}
12. Ne5 {[%clk 00:16:12]} {[%emt 00:00:05]} Bxe5 {[%clk 00:15:19]} {[%emt
00:00:24]} 13. dxe5 {[%clk 00:16:21]} {[%emt 00:00:02]} Nfxd5 {[%clk 00:15:18]}
{[%emt 00:00:11]} 14. Nxd5 {[%clk 00:16:22]} {[%emt 00:00:08]} Nxd5 {[%clk
00:15:26]} {[%emt 00:00:02]} 15. Qe4 {[%clk 00:16:30]} {[%emt 00:00:03]} Be6
{[%clk 00:15:13]} {[%emt 00:00:23]} 16. Bd3 {[%clk 00:16:34]} {[%emt 00:00:06]}
g6 {[%clk 00:14:30]} {[%emt 00:00:53]} 17. Bxh6 {[%clk 00:16:39]} {[%emt
00:00:04]} Bf5 {[%clk 00:14:33]} {[%emt 00:00:07]} 18. Qe2 {[%clk 00:16:28]}
{[%emt 00:00:19]} Nf4 {[%clk 00:14:10]} {[%emt 00:00:35]} 19. Bxf4 {[%clk
00:16:27]} {[%emt 00:00:11]} Bxd3 {[%clk 00:14:19]} {[%emt 00:00:02]} 20. Qf3
{[%clk 00:16:03]} {[%emt 00:00:29]} Bxf1 {[%emt 00:00:11]} 21. Rxf1 {[%clk
00:16:01]} {[%emt 00:00:09]} Qh4 {[%clk 00:13:14]} {[%emt 00:01:16]} 22. g3
{[%clk 00:16:04]} {[%emt 00:00:12]} Qh5 {[%clk 00:13:11]} {[%emt 00:00:04]} 23.
Qxb7 {[%clk 00:16:11]} {[%emt 00:00:12]} Qe2 {[%clk 00:11:50]} {[%emt
00:01:19]} 24. Qxc7 {[%clk 00:16:06]} {[%emt 00:00:27]} Qxb2 {[%clk 00:11:46]}
{[%emt 00:00:14]} 25. Qe7 {[%clk 00:16:12]} {[%emt 00:00:04]} Qb6 {[%clk
00:11:08]} {[%emt 00:00:43]} 26. a4 {[%clk 00:15:56]} {[%emt 00:00:30]} Rae8
{[%clk 00:10:55]} {[%emt 00:00:23]} 27. Qh4 {[%clk 00:15:49]} {[%emt 00:00:17]}
Re6 {[%clk 00:10:03]} {[%emt 00:00:58]} 28. g4 {[%clk 00:15:36]} {[%emt
00:00:26]} Qd4 {[%clk 00:09:44]} {[%emt 00:00:30]} 29. Be3 {[%clk 00:15:05]}
{[%emt 00:00:41]} Qxa4 {[%clk 00:09:22]} {[%emt 00:00:32]} 30. f4 {[%clk
00:14:53]} {[%emt 00:00:22]} a6 {[%clk 00:07:58]} {[%emt 00:01:35]} 31. Qg5
{[%clk 00:14:31]} {[%emt 00:00:29]} Qb3 {[%clk 00:07:38]} {[%emt 00:00:27]} 32.
Bc5 {[%clk 00:14:34]} {[%emt 00:00:12]} Rc8 {[%clk 00:06:48]} {[%emt 00:00:56]}
33. Bd6 {[%clk 00:14:32]} {[%emt 00:00:13]} Qe3+ {[%clk 00:06:38]} {[%emt
00:00:09]} 34. Kg2 {[%clk 00:14:18]} {[%emt 00:00:38]} Rc2+ {[%clk 00:06:29]}
{[%emt 00:00:11]} 35. Kh1 {[%clk 00:14:23]} {[%emt 00:00:11]} 0-1

[Event "Chessity Nationale Pupillendag 2018 - Groep F"]
[Site "Meppel, Netherlands"]
[Date "2018.06.23"]
[Round "2.5"]
[White "Madularea, David"]
[Black "Tang, Dean"]
[Result "1-0"]
[TimeControl "15 min + 10 sec"]
[WhiteElo "961"]
[BlackElo "563"]

1. d4 {[%clk 00:15:18]} {[%emt 00:00:02]} e5 {[%clk 00:15:19]} 2. e4 {[%clk
00:15:23]} {[%emt 00:00:05]} d5 {[%clk 00:15:34]} {[%emt 00:00:14]} 3. c4 exd4
{[%emt 00:00:09]} 4. Nf3 {[%clk 00:15:27]} dxe4 {[%emt 00:00:04]} 5. Nxd4
{[%clk 00:15:32]} {[%emt 00:00:02]} Nf6 {[%clk 00:15:54]} {[%emt 00:00:03]} 6.
Nc3 Bc5 {[%emt 00:00:20]} 7. Nb3 {[%emt 00:00:23]} Qxd1+ {[%clk 00:15:50]}
{[%emt 00:00:05]} 8. Nxd1 {[%clk 00:15:30]} {[%emt 00:00:02]} Bb4+ {[%clk
00:15:54]} {[%emt 00:00:06]} 9. Bd2 {[%clk 00:15:35]} {[%emt 00:00:05]} Bxd2+
{[%clk 00:16:03]} {[%emt 00:00:02]} 10. Nxd2 {[%clk 00:15:42]} {[%emt
00:00:02]} Nc6 {[%clk 00:16:09]} {[%emt 00:00:04]} 11. Ne3 {[%clk 00:15:43]}
{[%emt 00:00:09]} Nd4 {[%clk 00:16:09]} {[%emt 00:00:10]} 12. O-O-O {[%clk
00:15:31]} {[%emt 00:00:22]} Ng4 {[%clk 00:16:15]} {[%emt 00:00:05]} 13. Nxe4
{[%clk 00:15:14]} {[%emt 00:00:27]} O-O {[%clk 00:16:06]} {[%emt 00:00:18]} 14.
Rxd4 {[%clk 00:15:15]} {[%emt 00:00:09]} Bf5 {[%clk 00:16:03]} {[%emt
00:00:14]} 15. Nxf5 {[%clk 00:15:21]} {[%emt 00:00:04]} b6 {[%clk 00:15:57]}
{[%emt 00:00:15]} 16. Nf6+ {[%clk 00:15:25]} {[%emt 00:00:06]} Nxf6 {[%emt
00:00:08]} 17. Bd3 {[%clk 00:15:26]} {[%emt 00:00:06]} c5 {[%clk 00:16:08]}
{[%emt 00:00:05]} 18. Rh4 {[%clk 00:15:02]} {[%emt 00:00:27]} h6 {[%clk
00:16:16]} {[%emt 00:00:09]} 19. Rh3 {[%clk 00:14:53]} {[%emt 00:00:16]} Ng4
{[%clk 00:16:21]} {[%emt 00:00:07]} 20. Rg3 {[%clk 00:14:56]} {[%emt 00:00:06]}
Nxf2 {[%clk 00:16:28]} {[%emt 00:00:04]} 21. Nxh6+ {[%clk 00:15:04]} {[%emt
00:00:02]} Kh8 {[%clk 00:16:35]} {[%emt 00:00:03]} 22. Rf1 {[%clk 00:14:58]}
{[%emt 00:00:16]} gxh6 {[%clk 00:16:36]} {[%emt 00:00:09]} 23. Rxf2 {[%clk
00:15:05]} {[%emt 00:00:04]} f5 {[%clk 00:16:38]} {[%emt 00:00:07]} 24. Rxf5
{[%clk 00:15:07]} {[%emt 00:00:08]} Rxf5 {[%clk 00:16:47]} {[%emt 00:00:01]} 25.
Bxf5 {[%clk 00:15:16]} {[%emt 00:00:01]} Rf8 {[%clk 00:16:54]} {[%emt
00:00:04]} 26. Bg6 {[%clk 00:15:20]} {[%emt 00:00:03]} Rf1+ {[%clk 00:17:02]}
{[%emt 00:00:04]} 27. Kc2 {[%clk 00:15:22]} {[%emt 00:00:08]} Rf2+ {[%clk
00:17:10]} {[%emt 00:00:02]} 28. Kb3 {[%clk 00:15:31]} Re2 {[%clk 00:17:12]}
{[%emt 00:00:09]} 29. h3 {[%clk 00:15:35]} {[%emt 00:00:05]} Kg7 {[%clk
00:17:19]} {[%emt 00:00:03]} 30. Bh5+ {[%clk 00:15:44]} {[%emt 00:00:02]} Kf6
{[%clk 00:17:27]} {[%emt 00:00:02]} 31. Bxe2 {[%clk 00:15:53]} {[%emt
00:00:01]} Kf5 {[%clk 00:17:32]} {[%emt 00:00:06]} 32. Re3 {[%clk 00:15:49]}
{[%emt 00:00:13]} Kf4 {[%clk 00:17:39]} {[%emt 00:00:03]} 33. Re6 {[%clk
00:15:54]} {[%emt 00:00:05]} h5 {[%clk 00:17:48]} {[%emt 00:00:02]} 34. g4
{[%clk 00:15:56]} {[%emt 00:00:07]} h4 {[%clk 00:17:55]} {[%emt 00:00:03]} 35.
g5 {[%clk 00:15:56]} {[%emt 00:00:10]} Kxg5 {[%clk 00:18:01]} {[%emt 00:00:04]}
36. Bg4 {[%clk 00:16:05]} {[%emt 00:00:01]} Kf4 {[%clk 00:18:06]} {[%emt
00:00:05]} 37. Kc3 {[%clk 00:16:14]} {[%emt 00:00:01]} Kg3 {[%clk 00:18:12]}
{[%emt 00:00:05]} 38. Rf6 {[%clk 00:16:20]} {[%emt 00:00:04]} Kg2 {[%clk
00:18:17]} {[%emt 00:00:05]} 39. Kd3 {[%clk 00:16:25]} {[%emt 00:00:03]} Kg3
{[%clk 00:18:25]} {[%emt 00:00:03]} 40. Ke2 {[%clk 00:16:31]} {[%emt 00:00:03]}
Kg2 {[%clk 00:18:34]} {[%emt 00:00:02]} 41. Rg6 {[%clk 00:16:38]} {[%emt
00:00:02]} Kg3 {[%clk 00:18:42]} {[%emt 00:00:03]} 42. Bf5+ {[%clk 00:16:36]}
{[%emt 00:00:12]} Kf4 {[%clk 00:18:51]} {[%emt 00:00:02]} 43. Rf6 {[%clk
00:16:33]} {[%emt 00:00:13]} Ke5 {[%clk 00:18:59]} {[%emt 00:00:02]} 44. Rf7
{[%clk 00:16:42]} Kf4 {[%clk 00:19:03]} {[%emt 00:00:05]} 45. Kd3 {[%clk
00:16:43]} {[%emt 00:00:09]} Ke5 {[%clk 00:19:12]} {[%emt 00:00:02]} 46. Bg6
{[%clk 00:16:48]} {[%emt 00:00:04]} Ke6 {[%clk 00:19:20]} {[%emt 00:00:02]} 47.
Ke4 {[%clk 00:16:55]} {[%emt 00:00:03]} Kd6 {[%clk 00:19:28]} {[%emt 00:00:03]}
48. Rf6+ {[%clk 00:17:01]} {[%emt 00:00:03]} Kc7 {[%clk 00:19:36]} {[%emt
00:00:03]} 49. Be8 {[%clk 00:17:01]} {[%emt 00:00:09]} Kb7 {[%clk 00:19:45]}
{[%emt 00:00:02]} 50. Bb5 {[%clk 00:17:05]} {[%emt 00:00:05]} a6 {[%clk
00:19:53]} {[%emt 00:00:02]} 51. Bc6+ {[%clk 00:17:11]} {[%emt 00:00:04]} Ka7
{[%clk 00:20:01]} {[%emt 00:00:03]} 52. Rf7+ {[%clk 00:17:17]} {[%emt
00:00:03]} Kb8 {[%clk 00:20:10]} 53. Ke5 {[%clk 00:17:11]} {[%emt 00:00:14]}
Kc8 {[%emt 00:00:07]} 54. Kd6 {[%clk 00:17:17]} {[%emt 00:00:02]} Kb8 {[%clk
00:20:23]} {[%emt 00:00:06]} 55. Rf8+ {[%clk 00:17:25]} {[%emt 00:00:01]} Ka7
{[%clk 00:20:32]} 56. Ra8# {[%clk 00:17:32]} {[%emt 00:00:03]} 1-0

[Event "Chessity Nationale Pupillendag 2018 - Groep F"]
[Site "Meppel, Netherlands"]
[Date "2018.06.23"]
[Round "2.6"]
[White "Chardon, Kayen"]
[Black "Paulzen, Yuko"]
[Result "0-1"]
[TimeControl "15 min + 10 sec"]
[WhiteElo "563"]
[BlackElo "931"]

1. e4 {[%clk 00:15:05]} {[%emt 00:00:04]} e5 {[%clk 00:15:07]} {[%emt
00:00:24]} 2. Nf3 {[%clk 00:15:11]} {[%emt 00:00:04]} Nc6 {[%clk 00:15:10]}
{[%emt 00:00:07]} 3. Bb5 {[%clk 00:15:18]} {[%emt 00:00:03]} d6 {[%clk
00:15:09]} {[%emt 00:00:11]} 4. c4 {[%clk 00:15:22]} {[%emt 00:00:06]} Bg4
{[%clk 00:14:54]} {[%emt 00:00:25]} 5. Nc3 {[%clk 00:15:25]} {[%emt 00:00:07]}
Nge7 {[%clk 00:14:16]} {[%emt 00:00:47]} 6. O-O {[%clk 00:15:20]} {[%emt
00:00:16]} g6 {[%emt 00:00:25]} 7. h3 {[%emt 00:00:03]} Be6 {[%clk 00:13:35]}
{[%emt 00:00:23]} 8. d4 {[%clk 00:14:32]} {[%emt 00:00:57]} a6 {[%clk
00:12:55]} {[%emt 00:00:51]} 9. Bxc6+ {[%clk 00:14:37]} {[%emt 00:00:05]} bxc6
{[%clk 00:12:44]} {[%emt 00:00:21]} 10. Bg5 {[%clk 00:14:40]} {[%emt 00:00:08]}
Bxc4 {[%clk 00:12:33]} {[%emt 00:00:20]} 11. Re1 {[%clk 00:14:37]} {[%emt
00:00:12]} Bg7 {[%clk 00:12:07]} {[%emt 00:00:36]} 12. Qa4 {[%clk 00:14:32]}
{[%emt 00:00:16]} Bb5 {[%clk 00:12:00]} {[%emt 00:00:18]} 13. Nxb5 {[%clk
00:14:34]} {[%emt 00:00:08]} cxb5 {[%clk 00:12:02]} {[%emt 00:00:07]} 14. Qc2
{[%clk 00:14:41]} {[%emt 00:00:02]} exd4 {[%clk 00:11:54]} {[%emt 00:00:20]} 15.
Bxe7 {[%clk 00:14:46]} {[%emt 00:00:04]} Qxe7 {[%clk 00:11:38]} {[%emt
00:00:26]} 16. Qc6+ {[%emt 00:00:06]} Qd7 {[%clk 00:11:21]} {[%emt 00:00:25]}
17. Qxa8+ {[%clk 00:14:59]} {[%emt 00:00:03]} Qd8 {[%clk 00:11:19]} {[%emt
00:00:12]} 18. Qxd8+ {[%clk 00:15:05]} {[%emt 00:00:02]} Kxd8 {[%emt 00:00:05]}
19. Red1 {[%clk 00:15:05]} {[%emt 00:00:08]} c5 {[%clk 00:11:30]} {[%emt
00:00:08]} 20. b4 {[%clk 00:15:12]} {[%emt 00:00:03]} d3 {[%clk 00:11:31]}
{[%emt 00:00:09]} 21. Rab1 {[%clk 00:15:11]} {[%emt 00:00:10]} c4 {[%clk
00:11:38]} {[%emt 00:00:04]} 22. Ng5 {[%clk 00:15:10]} {[%emt 00:00:11]} Ke7
{[%clk 00:11:21]} {[%emt 00:00:27]} 23. Re1 {[%clk 00:14:48]} {[%emt 00:00:31]}
d2 {[%clk 00:11:24]} {[%emt 00:00:08]} 24. Red1 {[%clk 00:14:57]} {[%emt
00:00:02]} c3 {[%clk 00:11:32]} {[%emt 00:00:02]} 25. Nf3 {[%clk 00:14:55]}
{[%emt 00:00:12]} Rc8 {[%clk 00:11:29]} {[%emt 00:00:12]} 26. Nxd2 {[%clk
00:15:02]} {[%emt 00:00:03]} c2 {[%clk 00:11:20]} {[%emt 00:00:20]} 27. Rbc1
{[%clk 00:15:08]} {[%emt 00:00:03]} cxd1=Q+ {[%clk 00:11:26]} {[%emt 00:00:05]}
28. Rxd1 {[%clk 00:15:16]} {[%emt 00:00:02]} Rc2 {[%clk 00:11:14]} {[%emt
00:00:22]} 29. Nb1 {[%clk 00:15:10]} {[%emt 00:00:16]} Rxa2 {[%clk 00:11:16]}
{[%emt 00:00:08]} 30. Re1 {[%clk 00:15:18]} {[%emt 00:00:03]} Ra1 {[%clk
00:11:20]} {[%emt 00:00:05]} 31. Rc1 {[%clk 00:14:40]} {[%emt 00:00:47]} Ke6
{[%clk 00:11:22]} {[%emt 00:00:10]} 32. f3 {[%clk 00:14:46]} {[%emt 00:00:04]}
Bh6 {[%clk 00:11:20]} {[%emt 00:00:12]} 33. Rd1 {[%clk 00:14:47]} {[%emt
00:00:07]} Be3+ {[%clk 00:11:16]} {[%emt 00:00:15]} 34. Kf1 {[%clk 00:14:55]}
{[%emt 00:00:02]} Bg5 {[%clk 00:10:30]} {[%emt 00:00:56]} 35. g3 {[%clk
00:14:58]} {[%emt 00:00:06]} Bf6 {[%clk 00:10:35]} {[%emt 00:00:06]} 36. f4
{[%clk 00:15:06]} {[%emt 00:00:02]} Bb2 {[%clk 00:10:31]} {[%emt 00:00:14]} 37.
g4 {[%clk 00:14:58]} {[%emt 00:00:18]} Ba3 {[%clk 00:10:27]} {[%emt 00:00:14]}
38. f5+ {[%clk 00:15:04]} {[%emt 00:00:04]} gxf5 {[%clk 00:10:34]} {[%emt
00:00:03]} 39. gxf5+ {[%clk 00:15:13]} Ke7 {[%clk 00:10:12]} {[%emt 00:00:32]}
40. Ke2 {[%clk 00:14:14]} {[%emt 00:01:10]} Bxb4 {[%clk 00:10:16]} {[%emt
00:00:05]} 41. Rc1 {[%clk 00:14:12]} {[%emt 00:00:13]} Bc5 {[%clk 00:09:47]}
{[%emt 00:00:38]} 42. e5 {[%clk 00:14:20]} {[%emt 00:00:02]} a5 {[%clk
00:09:15]} {[%emt 00:00:43]} 43. f6+ {[%clk 00:14:27]} {[%emt 00:00:02]} Ke6
{[%clk 00:09:04]} {[%emt 00:00:22]} 44. Kd2 {[%clk 00:14:33]} {[%emt 00:00:03]}
dxe5 {[%clk 00:08:57]} {[%emt 00:00:18]} 45. Kc2 {[%clk 00:14:36]} {[%emt
00:00:05]} Kxf6 {[%clk 00:08:41]} {[%emt 00:00:27]} 46. Kb2 {[%clk 00:14:32]}
{[%emt 00:00:14]} Bd4+ {[%clk 00:08:47]} {[%emt 00:00:04]} 47. Kc2 {[%clk
00:14:33]} {[%emt 00:00:08]} a4 {[%clk 00:08:51]} {[%emt 00:00:08]} 48. Rf1+
{[%clk 00:14:39]} {[%emt 00:00:02]} Ke6 {[%clk 00:09:00]} {[%emt 00:00:02]} 49.
Rg1 {[%clk 00:14:03]} {[%emt 00:00:47]} a3 {[%clk 00:08:53]} {[%emt 00:00:17]}
50. Rg7 {[%clk 00:14:03]} {[%emt 00:00:05]} a2 {[%clk 00:08:26]} {[%emt
00:00:41]} 51. Nd2 {[%clk 00:13:54]} {[%emt 00:00:19]} Rh1 {[%clk 00:08:07]}
{[%emt 00:00:29]} 52. Nb3 {[%clk 00:14:01]} {[%emt 00:00:03]} a1=Q {[%clk
00:07:52]} {[%emt 00:00:25]} 53. Nxa1 {[%emt 00:00:02]} Rxa1 {[%emt 00:00:07]}
54. Rxh7 {[%clk 00:13:58]} {[%emt 00:00:04]} b4 {[%clk 00:07:43]} {[%emt
00:00:20]} 55. Kb3 {[%clk 00:14:06]} Bc3 {[%clk 00:07:51]} {[%emt 00:00:02]} 56.
Rh6+ {[%clk 00:14:13]} {[%emt 00:00:03]} Ke7 {[%clk 00:07:58]} {[%emt
00:00:03]} 57. h4 {[%clk 00:14:11]} {[%emt 00:00:09]} Ra3+ {[%clk 00:08:06]}
{[%emt 00:00:05]} 58. Kc2 {[%clk 00:14:18]} {[%emt 00:00:03]} Bd4 {[%clk
00:08:07]} {[%emt 00:00:09]} 59. h5 {[%clk 00:14:24]} {[%emt 00:00:04]} b3+
{[%clk 00:08:15]} {[%emt 00:00:03]} 60. Kb1 {[%clk 00:14:32]} {[%emt 00:00:01]}
b2 {[%clk 00:08:12]} {[%emt 00:00:13]} 61. Kc2 {[%clk 00:14:36]} {[%emt
00:00:06]} Ra1 {[%emt 00:00:19]} 62. Rh8 {[%clk 00:14:37]} {[%emt 00:00:06]}
b1=Q+ {[%clk 00:08:13]} {[%emt 00:00:03]} 63. Kd2 {[%clk 00:14:45]} {[%emt
00:00:02]} Qb3 {[%clk 00:08:12]} {[%emt 00:00:12]} 64. Rc8 {[%clk 00:14:42]}
{[%emt 00:00:13]} Ra2+ {[%clk 00:08:19]} {[%emt 00:00:03]} 65. Kc1 {[%clk
00:14:34]} {[%emt 00:00:17]} Be3# {[%clk 00:08:20]} {[%emt 00:00:09]} 0-1